[Event "Czech Open Rapid G1 2024"]
[Site "Pardubice"]
[Date "2024.07.18"]
[Round "7.6"]
[White "Movsesian, Julia"]
[Black "Piesik, Piotr"]
[Result "1/2-1/2"]
[Annotator "RC"]
[ECO "B12"]
[WhiteElo "2202"]
[BlackElo "2415"]
[PlyCount "154"]
[EventDate "2024.07.16"]
[EventType "swiss"]
[EventCountry "CZE"]
[SourceTitle "playchess.com"]
[Source "ChessBase"]
[SourceQuality "1"]
[TimeControl "1200+10"]

1. e4 {[%emt 0:00:02]} c6 {[%emt 0:00:03]} 2. d4 {[%emt 0:00:10]} d5 {[%emt 0:00:02]} 3. e5 {[%emt 0:00:01]} Bf5 {[%emt 0:00:01]} 4. Nd2 {[%emt 0:00:26]} e6 {[%emt 0:00:15]} 5. Nb3 {[%emt 0:00:03]} Nd7 {[%emt 0:00:19]} 6. a4 {[%emt 0:00:12]} Be7 {[%emt 0:01:12]} 7. Nf3 {[%emt 0:00:20]} h5 {[%emt 0:00:08]} 8. Be2 {[%emt 0:00:54]} g5 {[%emt 0:00:22]} 9. h3 {[%emt 0:01:12]} Nh6 {[%emt 0:02:16]} 10. a5 {[%emt 0:00:25]} a6 {[%emt 0:00:05]} 11. Be3 {[%emt 0:01:05]} g4 {[%emt 0:02:37]} 12. hxg4 {[%emt 0:00:07]} Nxg4 {[%emt 0:00:01]} 13. Bf4 {[%emt 0:00:12]} Nf8 {[%emt 0:00:34]} 14. Qd2 {[%emt 0:01:14]} Ng6 {[%emt 0:00:58]} 15. Bg5 {[%emt 0:00:09]} f6 {[%emt 0:00:04]} 16. exf6 {[%emt 0:00:21]} Nxf6 {[%emt 0:00:02]} 17. Nc5 {[%emt 0:00:49]} Qc7 {[%emt 0:02:43]} 18. Ra3 {[%emt 0:02:45]} Ne4 {[%emt 0:00:26]} 19. Nxe4 {[%emt 0:01:19]} dxe4 {[%emt 0:00:01]} 20. Ne5 {[%emt 0:00:35]} O-O-O {[%emt 0:05:05]} 21. Nxg6 {[%emt 0:01:43]} Bxg6 {[%emt 0:00:14]} 22. Rg3 {[%emt 0:00:23]} h4 {[%emt 0:00:50]} 23. Rgh3 {[%emt 0:00:13]} Bf5 {[%emt 0:01:21]} 24. Bf4 {[%emt 0:00:39]} Qd7 {[%emt 0:02:23]} 25. Rb3 {[%emt 0:00:08]} Bd6 {[%emt 0:00:29]} 26. Bxd6 {[%emt 0:02:39]} Qxd6 {[%emt 0:00:01]} 27. Qb4 {[%emt 0:00:02]} Qxb4+ {[%emt 0:00:15]} 28. Rxb4 {[%emt 0:00:01]} Rdg8 {[%emt 0:00:28]} 29. Bf1 {[%emt 0:00:13]} e3 {[%emt 0:00:24]} 30. c3 {[%emt 0:00:51]} exf2+ {[%emt 0:00:03]} 31. Kxf2 {[%emt 0:00:01]} Be4 {[%emt 0:00:07]} 32. Ra4 {[%emt 0:00:13]} Rg4 {[%emt 0:00:17]} 33. Ra1 {[%emt 0:00:47]} Rf8+ {[%emt 0:00:13]} 34. Ke3 {[%emt 0:00:01]} Bd5 {[%emt 0:00:35]} 35. Rh3 {[%emt 0:00:25]} Re4+ {[%emt 0:00:14]} 36. Kd3 {[%emt 0:00:08]} Ref4 {[%emt 0:00:02]} 37. c4 {[%emt 0:00:50]} Be4+ {[%emt 0:00:51]} 38. Ke3 {[%emt 0:00:01]} Bg6 {[%emt 0:00:01]} 39. Bd3 {[%emt 0:00:10]} Bxd3 {[%emt 0:00:04]} 40. Kxd3 {[%emt 0:00:01]} Rd8 {[%emt 0:00:01]} 41. Kc3 {[%emt 0:00:49]} Rdxd4 {[%emt 0:00:08]} 42. b3 {[%emt 0:00:01]} Rde4 {[%emt 0:00:07]} 43. Rd1 {[%emt 0:00:06]} Rg4 {[%emt 0:00:21]} 44. Kb4 {[%emt 0:00:36]} Rxg2 {[%emt 0:00:23]} 45. Rhd3 {[%emt 0:00:26]} Rg7 {[%emt 0:00:01]} 46. Rf1 {[%emt 0:00:16]} Rh7 {[%emt 0:00:17]} 47. Rdf3 {[%emt 0:01:36]} Rd7 {[%emt 0:00:24]} 48. Rf8+ {[%emt 0:00:11]} Kc7 49. Rh8 {[%emt 0:00:02]} Red4 {[%emt 0:00:13]} 50. Rff8 {[%emt 0:00:34]} Kd6 {[%emt 0:00:03]} 51. Rh5 {[%emt 0:00:09]} Re4 {[%emt 0:00:11]} 52. Rfh8 {[%emt 0:00:09]} Rf7 {[%emt 0:00:16]} 53. Rd8+ {[%emt 0:00:46]} Ke7 {[%emt 0:00:06]} 54. Rdh8 {[%emt 0:00:03]} Kd6 {[%emt 0:00:06]} 55. Rd8+ {[%emt 0:00:02]} Ke7 {[%emt 0:00:01]} 56. Rdh8 {[%emt 0:00:01]} Kd7 {[%emt 0:00:07]} 57. Kc5 {[%emt 0:00:25]} Kc7 {[%emt 0:00:01]} 58. Rxh4 {[%emt 0:00:31]} Rf5+ {[%emt 0:00:09]} 59. Kb4 {[%emt 0:00:01]} c5+ {[%emt 0:00:01]} 60. Ka3 {[%emt 0:00:09]} Rxh4 {[%emt 0:00:04]} 61. Rxh4 {[%emt 0:00:01]} Rf1 {[%emt 0:00:03]} 62. Rh7+ {[%emt 0:00:10]} Kc6 {[%emt 0:00:02]} 63. Re7 {[%emt 0:00:01]} Re1 {[%emt 0:00:15]} 64. Kb2 {[%emt 0:00:01]} Re2+ {[%emt 0:00:02]} 65. Kc3 {[%emt 0:00:01]} Re3+ {[%emt 0:00:01]} 66. Kc2 {[%emt 0:00:12]} Re4 {[%emt 0:00:12]} 67. Kd3 {[%emt 0:00:05]} Re1 {[%emt 0:00:21]} 68. Kd2 {[%emt 0:00:03]} Ra1 {[%emt 0:00:16]} 69. Rxe6+ {[%emt 0:00:04]} Kd7 {[%emt 0:00:01]} 70. Rh6 {[%emt 0:00:16]} Rxa5 {[%emt 0:00:01]} 71. Kc3 {[%emt 0:00:00]} Ra1 {[%emt 0:00:06]} 72. Rh7+ {[%emt 0:00:05]} Kc6 {[%emt 0:00:02]} 73. Rh6+ {[%emt 0:00:03]} Kc7 {[%emt 0:00:01]} 74. Rh5 {[%emt 0:00:03]} Kb6 {[%emt 0:00:16]} 75. Rh6+ {[%emt 0:00:07]} Ka7 {[%emt 0:00:02]} 76. Rh5 {[%emt 0:00:02]} Kb6 {[%emt 0:00:18]} 77. Rh6+ {[%emt 0:00:10]} Kc7 {[%emt 0:01:04]} 1/2-1/2

[Event "Czech Open Rapid G1 2024"]
[Site "Pardubice"]
[Date "2024.07.18"]
[Round "7.7"]
[White "Karvatskyi, Oleksii"]
[Black "Cerveny, Martin"]
[Result "1-0"]
[Annotator "RC"]
[ECO "C41"]
[WhiteElo "1990"]
[BlackElo "2325"]
[PlyCount "109"]
[EventDate "2024.07.16"]
[EventType "swiss"]
[EventCountry "CZE"]
[SourceTitle "playchess.com"]
[Source "ChessBase"]
[SourceQuality "1"]
[TimeControl "1200+10"]

1. d4 {[%emt 0:00:05]} d6 {[%emt 0:00:01]} 2. Nc3 {[%emt 0:00:00]} Nf6 {[%emt 0:00:04]} 3. e4 {[%emt 0:00:00]} e5 {[%emt 0:00:02]} 4. Nf3 {[%emt 0:00:32]} Nbd7 {[%emt 0:00:02]} 5. h3 {[%emt 0:00:05]} Be7 {[%emt 0:00:06]} 6. Be3 {[%emt 0:00:04]} c6 {[%emt 0:00:09]} 7. a4 {[%emt 0:00:04]} a5 {[%emt 0:00:23]} 8. Be2 {[%emt 0:00:24]} O-O {[%emt 0:00:07]} 9. O-O {[%emt 0:00:03]} Qc7 {[%emt 0:00:10]} 10. Qd2 {[%emt 0:00:59]} Re8 {[%emt 0:00:21]} 11. Bc4 {[%emt 0:00:15]} exd4 {[%emt 0:02:48]} 12. Bxd4 {[%emt 0:00:32]} Ne5 {[%emt 0:00:20]} 13. Nxe5 {[%emt 0:00:52]} dxe5 {[%emt 0:00:02]} 14. Be3 {[%emt 0:00:06]} Bb4 {[%emt 0:00:33]} 15. Bd3 {[%emt 0:00:21]} Be6 {[%emt 0:00:16]} 16. Qe2 {[%emt 0:00:43]} Bxc3 {[%emt 0:01:00]} 17. bxc3 {[%emt 0:00:01]} c5 {[%emt 0:00:01]} 18. Bb5 {[%emt 0:00:11]} Red8 {[%emt 0:01:32]} 19. Bg5 {[%emt 0:00:06]} Qe7 {[%emt 0:00:56]} 20. f4 {[%emt 0:00:12]} h6 {[%emt 0:00:23]} 21. Bh4 {[%emt 0:00:46]} g5 {[%emt 0:01:49]} 22. fxe5 {[%emt 0:00:22]} Nd7 {[%emt 0:00:40]} 23. Bg3 {[%emt 0:00:03]} c4 {[%emt 0:00:14]} 24. Qh5 {[%emt 0:01:14]} Kg7 {[%emt 0:00:40]} 25. h4 {[%emt 0:02:53]} Rh8 {[%emt 0:01:44]} 26. Bf2 {[%emt 0:01:30]} Nf8 {[%emt 0:01:34]} 27. Bd4 {[%emt 0:00:47]} Ng6 {[%emt 0:00:54]} 28. Rf6 {[%emt 0:01:00]} Nf4 {[%emt 0:01:17]} 29. Qf3 {[%emt 0:00:20]} Kg8 {[%emt 0:00:21]} 30. g3 {[%emt 0:00:23]} Ng6 {[%emt 0:00:13]} 31. h5 {[%emt 0:00:27]} Nf8 {[%emt 0:00:01]} 32. Rf1 {[%emt 0:00:05]} Rc8 {[%emt 0:00:08]} 33. g4 {[%emt 0:01:31]} Rh7 {[%emt 0:00:04]} 34. Kg2 {[%emt 0:00:26]} Nd7 {[%emt 0:00:28]} 35. Bxd7 {[%emt 0:00:19]} Qxd7 {[%emt 0:00:03]} 36. Kg3 {[%emt 0:00:11]} Qxa4 {[%emt 0:00:16]} 37. Rb1 {[%emt 0:01:08]} Qd7 {[%emt 0:00:11]} 38. Rb6 {[%emt 0:01:20]} Rc6 {[%emt 0:00:01]} 39. Rb5 {[%emt 0:00:27]} a4 {[%emt 0:00:09]} 40. Ra5 {[%emt 0:00:20]} Ra6 {[%emt 0:00:01]} 41. Rxa6 {[%emt 0:00:02]} bxa6 {[%emt 0:00:01]} 42. Bc5 {[%emt 0:00:01]} Qd8 {[%emt 0:00:47]} 43. Bd6 {[%emt 0:00:15]} Kg7 {[%emt 0:00:04]} 44. Qf1 {[%emt 0:00:16]} Rh8 {[%emt 0:00:04]} 45. Qf2 {[%emt 0:00:40]} Qd7 {[%emt 0:00:31]} 46. Rg6+ {[%emt 0:00:36]} fxg6 {[%emt 0:00:50]} 47. Qf6+ {[%emt 0:00:01]} Kg8 {[%emt 0:00:01]} 48. Qxg6+ {[%emt 0:02:28]} Qg7 {[%emt 0:00:01]} 49. Qxe6+ {[%emt 0:00:03]} Qf7 {[%emt 0:00:23]} 50. Qf5 {[%emt 0:00:08]} Rh7 {[%emt 0:00:57]} 51. e6 {[%emt 0:00:09]} Qe8 {[%emt 0:00:19]} 52. Qf6 {[%emt 0:00:30]} Rg7 {[%emt 0:00:41]} 53. e5 {[%emt 0:00:32]} Kh7 {[%emt 0:01:00]} 54. Bf8 {[%emt 0:00:11]} Rb7 {[%emt 0:01:48]} 55. e7 {[%emt 0:00:05]} 1-0

[Event "Czech Open Rapid G1 2024"]
[Site "Pardubice"]
[Date "2024.07.18"]
[Round "7.8"]
[White "Rasik, Vitezslav"]
[Black "Kuegel, Tobias"]
[Result "1/2-1/2"]
[Annotator "RC"]
[ECO "B50"]
[WhiteElo "2415"]
[BlackElo "2416"]
[PlyCount "22"]
[EventDate "2024.07.16"]
[EventType "swiss"]
[EventCountry "CZE"]
[SourceTitle "playchess.com"]
[Source "ChessBase"]
[SourceQuality "1"]
[TimeControl "1200+10"]

1. e4 {[%emt 0:00:03]} c5 {[%emt 0:00:02]} 2. Nf3 {[%emt 0:00:03]} d6 {[%emt 0:00:02]} 3. c3 {[%emt 0:00:26]} Nf6 {[%emt 0:00:07]} 4. h3 {[%emt 0:00:14]} Nc6 {[%emt 0:00:30]} 5. Bd3 {[%emt 0:00:36]} e5 {[%emt 0:00:42]} 6. Bc2 {[%emt 0:00:35]} g6 {[%emt 0:00:04]} 7. d4 {[%emt 0:00:48]} cxd4 {[%emt 0:00:41]} 8. cxd4 {[%emt 0:00:07]} exd4 {[%emt 0:00:05]} 9. Nxd4 {[%emt 0:00:42]} Bg7 {[%emt 0:00:01]} 10. O-O {[%emt 0:03:34]} O-O {[%emt 0:00:07]} 11. Be3 {[%emt 0:01:25]} Re8 {[%emt 0:02:18]} 1/2-1/2

[Event "Czech Open Rapid G1 2024"]
[Site "Pardubice"]
[Date "2024.07.18"]
[Round "7.9"]
[White "Stocek, Jiri"]
[Black "Seger, Ruediger"]
[Result "1-0"]
[Annotator "TA"]
[ECO "D97"]
[WhiteElo "2524"]
[BlackElo "2264"]
[PlyCount "63"]
[EventDate "2024.07.16"]
[EventType "swiss"]
[EventCountry "CZE"]
[SourceTitle "playchess.com"]
[Source "ChessBase"]
[SourceQuality "1"]
[TimeControl "1200+10"]

{[%evp 14,63,20,0,0,-5,-6,-24,-37,-23,-5,-17,0,-95,-89,-121,-127,-129,0,0,-7,0,0,0,40,35,24,26,25,10,65,53,64,57,54,42,70,68,158,150,186,191,182,190,245,233,459,446,419,424,844,831]} 1. d4 {[%emt 0:00:05]} Nf6 {[%emt 0:00:03]} 2. c4 {[%emt 0:00:10]} g6 {[%emt 0:00:10]} 3. Nc3 {[%emt 0:00:00]} d5 {[%emt 0:00:00]} 4. Nf3 {[%emt 0:00:23]} Bg7 {[%emt 0:00:00]} 5. Qb3 {[%emt 0:00:09]} dxc4 {[%emt 0:00:09]} 6. Qxc4 {[%emt 0:00:06]} O-O {[%emt 0:00:06]} 7. e4 {[%emt 0:00:03]} Nc6 {[%emt 0:01:16]} 8. Bf4 {[%emt 0:00:41]} Bg4 {[%emt 0:03:25]} 9. d5 {[%emt 0:00:45]} Bxf3 {[%emt 0:00:06]} 10. dxc6 {[%emt 0:02:14] [#]} (10. gxf3 {vereinfacht} Nh5 11. Be3 Ne5 12. Qe2) 10... b5 {[%emt 0:00:03] Schwarz hat minimalen Vorteil.} 11. Nxb5 {[%emt 0:00:29]} Bxe4 {[%emt 0:01:11]} 12. Rd1 {[%emt 0:03:25] Lässt Qd5 nicht zu} (12. Nxc7 e5 13. Bg5 (13. Nxa8 $2 exf4 14. f3 Bd5 $19) (13. Bxe5 $2 Qe7 $19) 13... Qxc7 $17) (12. Bxc7 Qc8 13. Rd1 a6 $17) 12... Qc8 {[%emt 0:02:24]} (12... Bd5 13. Qa4 $14 (13. Bxc7 $2 Bxc4 14. Rxd8 Rfxd8 $19)) 13. f3 {[%emt 0:02:21]} (13. Bxc7 a6 14. Nc3 Qxc7 $17) (13. Nxc7 $11 Rb8 14. Nb5 Rxb5 15. Qxb5 Bxc6 16. Qc4) 13... Qf5 $1 $17 {[%emt 0:02:42]} 14. Bxc7 {[%emt 0:03:35] [#]} (14. fxe4 $2 Qxf4 15. Be2 Rfd8 $19 (15... Nxe4 16. Rf1 $11)) 14... Bxf3 {[%emt 0:00:09][%mdl 512]} 15. Bd3 {[%emt 0:00:02] [#]} Be4 {[%emt 0:00:10]} (15... Bd5 $1 $17 {...Qe6+ ist eine echte Drohung.} 16. Bxf5 Bxc4) 16. Bxe4 $11 {[%emt 0:03:02]} Qxe4+ {[%emt 0:00:04]} 17. Qxe4 {[%emt 0:00:02]} Nxe4 {[%emt 0:00:02]} 18. Ba5 {[%emt 0:00:06]} a6 {[%emt 0:05:59]} 19. Nc7 {[%emt 0:00:14]} Rac8 {[%emt 0:00:01]} 20. Nd5 $36 {[%emt 0:01:09][%mdl 2048] Weiss hat Druck.} (20. Nxa6 $2 Rxc6 21. Nc7 Bxb2 $19) 20... Rfe8 {[%emt 0:00:33]} 21. c7 {[%emt 0:00:24]} Be5 {[%emt 0:03:42]} (21... Bxb2 $11 22. O-O e6) 22. Rc1 $14 {[%emt 0:01:47]} e6 $1 {[%emt 0:00:18]} 23. Ne3 {[%emt 0:00:02]} Bxb2 {[%emt 0:00:46]} 24. Rc2 {[%emt 0:00:12]} Bd4 {[%emt 0:00:14]} 25. Ke2 {[%emt 0:00:10][%mdl 1024] Weiss hat Kompensation.} Nd6 {[%emt 0:00:04]} (25... Nf6 $14) 26. Rd1 $16 {[%emt 0:00:17]} e5 {[%emt 0:00:11]} 27. Nd5 {[%emt 0:00:12] Droht stark Bb4.} Kg7 {[%emt 0:00:04]} 28. Rc6 {[%emt 0:00:21]} Re6 {[%emt 0:00:14]} (28... Ne4 {war nötig.} 29. Nb6 (29. Rxa6 h5 $18) 29... Bxb6 30. Bxb6 Ng5) 29. Rb1 $18 {[%emt 0:00:55]} Nb5 $2 {[%emt 0:00:02]} (29... Ne8 {war einen Versuch wert.} 30. Rxe6 fxe6) 30. Rxe6 {[%emt 0:00:48]} fxe6 {[%emt 0:00:00]} 31. Rxb5 {[%emt 0:00:02]} ({Nicht} 31. Ne7 Rxc7 32. Bxc7 Nc3+ 33. Kd3 Nxb1 $14) 31... exd5 {[%emt 0:00:59]} (31... axb5 $142 32. Ne7 Ra8) 32. Rxd5 {[%emt 0:00:24] Gewichteter Fehlerwert: Weiß=0.09 (makellos) /Schwarz=0.43.  Fehler:       	Weiß=1     	Schwarz=6     Ungenau:       	Weiß=1     	Schwarz=2     OK:         	Weiß=14    	Schwarz=8     Bester:       	Weiß=3     	---        Stark:        	---       	Schwarz=2     Brilliant:      	---       	Schwarz=1} 1-0

[Event "Czech Open Rapid G1 2024"]
[Site "Pardubice"]
[Date "2024.07.18"]
[Round "7.10"]
[White "Neuman, Petr"]
[Black "Hosticka, Frantisek"]
[Result "1-0"]
[Annotator "RC"]
[ECO "A25"]
[WhiteElo "2441"]
[BlackElo "2062"]
[PlyCount "59"]
[EventDate "2024.07.16"]
[EventType "swiss"]
[EventCountry "CZE"]
[SourceTitle "playchess.com"]
[Source "ChessBase"]
[SourceQuality "1"]
[TimeControl "1200+10"]

1. c4 {[%emt 0:00:04]} e5 {[%emt 0:00:04]} 2. g3 {[%emt 0:00:10]} Nf6 {[%emt 0:00:17]} 3. Bg2 {[%emt 0:00:00]} Nc6 {[%emt 0:00:02]} 4. Nc3 {[%emt 0:00:00]} Bb4 {[%emt 0:00:05]} 5. Nd5 {[%emt 0:00:09]} Bc5 {[%emt 0:00:14]} 6. e3 {[%emt 0:00:06]} O-O {[%emt 0:00:16]} 7. Ne2 {[%emt 0:00:02]} Re8 {[%emt 0:00:29]} 8. a3 {[%emt 0:00:24]} a5 {[%emt 0:00:13]} 9. O-O {[%emt 0:00:23]} d6 {[%emt 0:00:28]} 10. h3 {[%emt 0:00:10]} e4 {[%emt 0:01:16]} 11. Qc2 {[%emt 0:02:52]} Ne5 {[%emt 0:10:01]} 12. Nxf6+ {[%emt 0:08:18]} Qxf6 {[%emt 0:00:00]} 13. Bxe4 {[%emt 0:00:02]} Bxh3 {[%emt 0:00:00]} 14. Nf4 {[%emt 0:00:06]} Bxf1 {[%emt 0:00:00]} 15. Kxf1 {[%emt 0:00:06]} Ng6 {[%emt 0:00:00]} 16. Bxb7 {[%emt 0:00:40]} Nxf4 {[%emt 0:00:00]} 17. gxf4 {[%emt 0:02:29]} Rab8 {[%emt 0:00:00]} 18. Bc6 {[%emt 0:00:02]} Re7 {[%emt 0:00:44]} 19. d4 {[%emt 0:00:05]} Bb6 {[%emt 0:00:37]} 20. Bd2 {[%emt 0:00:17]} Bxd4 {[%emt 0:03:06]} 21. exd4 {[%emt 0:00:08]} Qxd4 {[%emt 0:00:05]} 22. Qc3 {[%emt 0:00:38]} Qc5 {[%emt 0:00:37]} 23. Bf3 {[%emt 0:00:46]} a4 {[%emt 0:01:31]} 24. Be3 {[%emt 0:00:11]} Qf5 {[%emt 0:00:17]} 25. Rd1 {[%emt 0:00:32]} Rb3 {[%emt 0:01:23]} 26. Qd4 {[%emt 0:00:01]} h5 {[%emt 0:00:48]} 27. Kg2 {[%emt 0:00:57]} Re6 {[%emt 0:00:31]} 28. Kh2 {[%emt 0:00:08]} c5 {[%emt 0:00:38]} 29. Qd5 {[%emt 0:00:22]} Rxb2 {[%emt 0:00:08]} 30. Qxf5 {[%emt 0:00:05]} 1-0

[Event "Czech Open Rapid G1 2024"]
[Site "Pardubice"]
[Date "2024.07.18"]
[Round "7.11"]
[White "Ludvik, Tomas"]
[Black "Jirka, Jiri"]
[Result "1/2-1/2"]
[Annotator "TA"]
[ECO "D15"]
[WhiteElo "2210"]
[BlackElo "2387"]
[PlyCount "106"]
[EventDate "2024.07.16"]
[EventType "swiss"]
[EventCountry "CZE"]
[SourceTitle "playchess.com"]
[Source "ChessBase"]
[SourceQuality "1"]
[TimeControl "1200+10"]

{[%evp 11,106,26,35,36,43,0,106,98,104,18,25,20,86,94,88,88,95,84,111,131,122,72,72,80,87,74,88,52,55,62,52,35,58,40,93,19,15,8,11,0,0,0,0,0,37,36,46,45,114,108,110,115,178,141,127,158,142,131,143,20,8,0,0,0,0,0,0,0,0,0,0,0,0,0,0,0,0,0,0,0,0,0,120,0,714,8,8,8,8,8,8,8,8,8,8,8,8]} 1. d4 {[%emt 0:00:02]} d5 {[%emt 0:00:00]} 2. c4 {[%emt 0:00:03]} c6 {[%emt 0:00:01]} 3. Nf3 {[%emt 0:00:02]} Nf6 {[%emt 0:00:01]} 4. Nc3 {[%emt 0:00:01]} a6 {[%emt 0:00:01]} 5. e3 {[%emt 0:00:02]} b5 {[%emt 0:00:02]} 6. b3 {[%emt 0:00:01]} Bf5 {[%emt 0:00:02]} 7. Ne5 {[%emt 0:00:14]} h6 {[%emt 0:00:20]} 8. g4 {[%emt 0:00:05]} Be4 {[%emt 0:00:34]} (8... Bh7 $11 {remains equal.}) 9. Nxe4 $16 {[%emt 0:03:25] White is better.} Nxe4 {[%emt 0:00:02]} 10. Bd2 {[%emt 0:00:01] Active counter play!} ({Better is} 10. Qc2 $16) 10... e6 $11 {[%emt 0:01:12]} 11. Bg2 {[%emt 0:00:25]} Nf6 {[%emt 0:00:10]} (11... Nxd2 $11 12. Qxd2 Bd6) 12. O-O $16 {[%emt 0:01:40]} Bd6 {[%emt 0:00:07]} 13. f4 {[%emt 0:00:07]} O-O {[%emt 0:00:52]} 14. Qe2 {[%emt 0:00:44]} Ra7 {[%emt 0:08:35]} 15. Rad1 {[%emt 0:00:28]} Ne4 {[%emt 0:03:00]} 16. Be1 {[%emt 0:02:32]} (16. Bxe4 $142 dxe4 17. Bc3) 16... Qe8 {[%emt 0:01:28]} 17. Kh1 {[%emt 0:02:32]} f6 {[%emt 0:00:28] [#]} 18. Nd3 {[%emt 0:00:26]} Nd7 {[%emt 0:01:51]} 19. Rc1 {[%emt 0:01:19]} f5 {[%emt 0:00:19]} 20. Ne5 {[%emt 0:00:40]} Ndf6 {[%emt 0:00:18]} 21. gxf5 {[%emt 0:01:51]} exf5 {[%emt 0:00:05]} 22. Bh3 {[%emt 0:00:03]} Qe6 {[%emt 0:00:54] [#]} (22... g6 $14) 23. Nxc6 {[%emt 0:00:28]} (23. Qg2 $1 $16) 23... Rc7 $11 {[%emt 0:00:05]} 24. Ne5 $36 {[%emt 0:00:28][%mdl 2048] Threatens to win with c5. White is pushing.} bxc4 {[%emt 0:00:34]} 25. Ba5 {[%emt 0:02:38]} Rcc8 {[%emt 0:00:01]} (25... Bxe5 $2 26. fxe5 Rc6 27. Bxf5 $18 (27. exf6 Rxf6 28. Bg2 Rg6 $18)) 26. bxc4 {[%emt 0:00:25]} dxc4 {[%emt 0:00:01]} 27. Nxc4 {[%emt 0:00:19]} Nd5 {[%emt 0:01:25][%cal Od5f4] A dynamic duo of knights.} 28. Ne5 {[%emt 0:01:00]} Rxc1 {[%emt 0:00:43]} 29. Rxc1 {[%emt 0:00:21]} Rc8 {[%emt 0:00:03]} (29... Bxe5 $1 $14 30. fxe5 (30. dxe5 Rc8 $11) 30... h5) 30. Rxc8+ $16 Qxc8 {[%emt 0:00:01]} 31. Qc4 {[%emt 0:01:06]} Qe6 {[%emt 0:01:19]} (31... Qxc4 $16 {was called for.} 32. Nxc4 g6) 32. Bxf5 {[%emt 0:00:50]} Qxf5 {[%emt 0:00:14]} 33. Qxd5+ {[%emt 0:00:01]} Kh7 {[%emt 0:00:08]} 34. Be1 {[%emt 0:00:40]} Bxe5 {[%emt 0:00:15]} 35. Qxe5 {[%emt 0:00:15][%mdl 4096] Endgame. KQB-KQN} (35. dxe5 $16 {And now a4 would win.} Nf6 36. Qd4 (36. exf6 $2 {too greedy.} Qxd5+ 37. Kg1 gxf6 $19)) 35... Qg6 $11 {[%emt 0:00:05]} 36. d5 {[%emt 0:00:35] h3 is the strong threat.} Nf6 {[%emt 0:00:01]} 37. Bg3 {[%emt 0:00:14]} Qb1+ {[%emt 0:00:09]} 38. Kg2 {[%emt 0:00:00]} Qxa2+ {[%emt 0:00:06]} 39. Bf2 {[%emt 0:00:13]} Qxd5+ {[%emt 0:00:21]} 40. Qxd5 Nxd5 {[%emt 0:00:01] KB-KN} 41. Kf3 {[%emt 0:00:03]} a5 {[%emt 0:00:11][%cal Ba6a5,Ba5a4,Ba4a3,Ba3a2][%mdl 32]} 42. e4 {[%emt 0:00:08]} Nb4 {[%emt 0:00:07]} 43. Be1 {[%emt 0:00:19]} Nc6 {[%emt 0:00:02]} 44. Bc3 {[%emt 0:00:02]} a4 {[%emt 0:00:25]} 45. e5 {[%emt 0:00:20]} Kg6 {[%emt 0:00:04]} 46. Ke4 {[%emt 0:00:03]} Ne7 {[%emt 0:00:01]} (46... Kf7 $11 {keeps the balance.}) 47. e6 {[%emt 0:00:23]} (47. Bb2 $16) 47... Nf5 $2 {[%emt 0:00:24][%mdl 8192]} (47... a3 $11) 48. Ke5 $2 {[%emt 0:00:04]} (48. Bb2 $18 h5 49. Ke5) 48... a3 {[%emt 0:00:02] The position is equal.} 49. Kd5 {[%emt 0:00:15]} a2 {[%emt 0:00:05]} 50. Kc6 {[%emt 0:00:19]} Kh5 {[%emt 0:00:30]} 51. Kd7 {[%emt 0:00:11]} Kg4 {[%emt 0:00:10]} 52. e7 {[%emt 0:00:12]} ({Don't blunder} 52. h3+ $2 Kxh3 53. e7 Nxe7 54. Kxe7 Kg4 $19) 52... Nxe7 {[%emt 0:00:07]} 53. Kxe7 {[%emt 0:00:01]} g5 {[%emt 0:00:19] Weighted Error Value: White=0.30/Black=0.20 (precise) .  Loses game:     	---       	Black=1      Missed win:     	White=1     	---        Mistake:       	White=5     	Black=6      Inaccurate:     	White=2     	Black=2      OK:         	White=19    	Black=20     Best:        	White=4     	Black=5} 1/2-1/2

[Event "Czech Open Rapid G1 2024"]
[Site "Pardubice"]
[Date "2024.07.18"]
[Round "7.12"]
[White "Eropunov, Gleb"]
[Black "Lalic, Bogdan"]
[Result "1/2-1/2"]
[Annotator "RC"]
[ECO "C84"]
[WhiteElo "2190"]
[BlackElo "2348"]
[PlyCount "30"]
[EventDate "2024.07.16"]
[EventType "swiss"]
[EventCountry "CZE"]
[SourceTitle "playchess.com"]
[Source "ChessBase"]
[SourceQuality "1"]
[TimeControl "1200+10"]

1. e4 {[%emt 0:00:17]} e5 {[%emt 0:00:05]} 2. Nf3 {[%emt 0:00:05]} Nc6 {[%emt 0:00:03]} 3. Bb5 {[%emt 0:00:03]} a6 {[%emt 0:00:08]} 4. Ba4 {[%emt 0:00:02]} Nf6 {[%emt 0:00:13]} 5. d4 {[%emt 0:00:03]} exd4 {[%emt 0:00:07]} 6. O-O {[%emt 0:00:04]} Be7 {[%emt 0:00:14]} 7. e5 {[%emt 0:00:06]} Ne4 {[%emt 0:00:05]} 8. Nxd4 {[%emt 0:00:09]} O-O {[%emt 0:00:11]} 9. Nf5 {[%emt 0:00:36]} d5 {[%emt 0:00:07]} 10. exd6 {[%emt 0:01:42]} Nxd6 {[%emt 0:00:38]} 11. Nxe7+ {[%emt 0:00:17]} Nxe7 {[%emt 0:00:07]} 12. Bf4 {[%emt 0:00:16]} Be6 {[%emt 0:00:45]} 13. Bb3 {[%emt 0:04:12]} Bxb3 {[%emt 0:01:24]} 14. axb3 {[%emt 0:00:56]} Nef5 {[%emt 0:00:07]} 15. Nc3 {[%emt 0:00:20]} Re8 {[%emt 0:00:09]} 1/2-1/2